Workbook

Sheet はじめに

Sheet 記載例
A1: 収支予算内訳 | E1: =+SUM(F7,F12,F27,F32) -> 737400 | F1: 単位：円
A2: 費目区分 | B2: 品目名 | C2: 単価 （税抜） | D2: 数量 | E2: 事業費 | F2: 補助対象経費 (税抜)
A3: ソフトウェア購入費 | B3: 財務会計ソフト○○ | C3: 50000 | D3: 1 | E3: =+IF(B3="","",C3*D3) -> 50000 | F3: =+IF(E3="","",E3) -> 50000
B4: 財務会計ソフト○○ ライセンス料 | C4: 12000 | D4: 1 | E4: =+IF(B4="","",C4*D4) -> 12000 | F4: =+IF(E4="","",E4) -> 12000
E6: =+IF(B6="","",C6*D6) ->  | F6: =+IF(E6="","",E6) -> 
A7: 小計 | E7: =SUM(E3:E6) -> 62000 | F7: =SUM(F3:F6) -> 62000
A8: システム 構築費 | B8: POSレジシステム連動 | C8: 450000 | D8: 1 | E8: 450000 | F8: 450000
B9: 既存在庫管理システムとの連動 | C9: 200000 | D9: 1 | E9: 200000 | F9: 200000
A12: 小計 | E12: =SUM(E8:E11) -> 650000 | F12: =SUM(F8:F11) -> 650000
A13: 導入関連経費 （PC・タブレット・周辺機器等） ※１台あたり15万円 まで ※補助対象経費全体の１/２以内 | B13: タブレット（メーカー・型番） | C13: 198000 | D13: 2 | E13: =+IF(B13="","",C13*D13) -> 396000 | F13: =+IF(B13="","",IF(C13<10000,"１万円未満",IF(MIN(150000*D13,C13*D13)<10000,0,IF(MIN(150000*D13,C13*D13)>$E$1,IF($E$1<10000,0,$E$1),MIN(150000*D13,C13*D13))))) -> 300000 | G13: =+IF(E13=F13,"","補助対象経費が１万円未満、150,001円以上、 または補助対象経費の全体の１/２を超えました") -> 補助対象経費が１万円未満、150,001円以上、 または補助対象経費の全体の１/２を超えました
F14: =+IF(B14="","",IF(C14<10000,"１万円未満",IF(MIN(150000*D14,C14*D14)<10000,0,IF(SUM($F$13:F13)+MIN(150000*D14,C14*D14)>$E$1,IF($E$1-SUM($F$13:F13)<10000,0,$E$1-SUM($F$13:F13)),MIN(150000*D14,C14*D14))))) ->  | G14: =+IF(E14=F14,"","補助対象経費が１万円未満、150,001円以上、 または補助対象経費の全体の１/２を超えました") -> 
F15: =+IF(B15="","",IF(C15<10000,"１万円未満",IF(MIN(150000*D15,C15*D15)<10000,0,IF(SUM($F$13:F14)+MIN(150000*D15,C15*D15)>$E$1,IF($E$1-SUM($F$13:F14)<10000,0,$E$1-SUM($F$13:F14)),MIN(150000*D15,C15*D15))))) -> 
F16: =+IF(B16="","",IF(C16<10000,"１万円未満",IF(MIN(150000*D16,C16*D16)<10000,0,IF(SUM($F$13:F15)+MIN(150000*D16,C16*D16)>$E$1,IF($E$1-SUM($F$13:F15)<10000,0,$E$1-SUM($F$13:F15)),MIN(150000*D16,C16*D16))))) -> 
A17: 小計 | E17: =SUM(E13:E16) -> 396000 | F17: =SUM(F13:F16) -> 300000
A18: 導入関連経費 （上記以外の経費） ※補助対象経費全体の１/２以内 | B18: POSレジ（メーカー・型番） | C18: 250000 | D18: 1 | E18: 250000 | F18: =+IF(B18="","",IF(C18<10000,"１万円未満",IF(C18*D18<10000,0,IF(SUM($F$13:$F$16)+C18*D18>$E$1,IF($E$1-SUM($F$13:$F$16)<10000,0,$E$1-SUM($F$13:$F$16)),C18*D18)))) -> 250000 | G18: =+IF(E18=F18,"","補助対象経費が１万円未満、 または補助対象経費の全体の１/２を超えました") -> 
B19: ハンディターミナル（メーカー・型番） | C19: 75000 | D19: 3 | E19: 225000 | F19: =+IF(B19="","",IF(C19<10000,"１万円未満",IF(C19*D19<10000,0,IF(SUM($F$13:$F$16,$F$18:F18)+C19*D19>$E$1,IF($E$1-SUM($F$13:$F$16,$F$18:F18)<10000,0,$E$1-SUM($F$13:$F$16,$F$18:F18)),C19*D19)))) -> 187400 | G19: =+IF(E19=F19,"","補助対象経費が１万円未満、 または補助対象経費の全体の１/２を超えました") -> 補助対象経費が１万円未満、 または補助対象経費の全体の１/２を超えました
F20: =+IF(B20="","",IF(C20<10000,"１万円未満",IF(C20*D20<10000,0,IF(SUM($F$13:$F$16,$F$18:F19)+C20*D20>$E$1,IF($E$1-SUM($F$13:$F$16,$F$18:F19)<10000,0,$E$1-SUM($F$13:$F$16,$F$18:F19)),C20*D20)))) -> 
F21: =+IF(B21="","",IF(C21<10000,"１万円未満",IF(C21*D21<10000,0,IF(SUM($F$13:$F$16,$F$18:F20)+C21*D21>$E$1,IF($E$1-SUM($F$13:$F$16,$F$18:F20)<10000,0,$E$1-SUM($F$13:$F$16,$F$18:F20)),C21*D21)))) -> 
A22: 小計 | E22: =SUM(E18:E21) -> 475000 | F22: =SUM(F18:F21) -> 437400
A23: クラウドサービス 利用料 | B23: ○○クラウド（R7年〇月〇日～〇月〇日 80日分） | C23: 130 | D23: 80 | E23: 10400 | F23: 10400
A27: 小計 | E27: =SUM(E23:E26) -> 10400 | F27: =SUM(F23:F26) -> 10400
A28: 賃借料 | B28: △△リース（R7年10月～12月 3か月分） | C28: 5000 | D28: 3 | E28: 15000 | F28: 15000
A32: 小計 | E32: =SUM(E28:E31) -> 15000 | F32: =SUM(F28:F31) -> 15000
A33: 合計 | E33: =+SUM(E7,E12,E17,E22,E27,E32) -> 1608400 | F33: =+IF(COUNTIF(F3:F32,"*未満*")>0,"Erroerあり",SUM(F7,F12,F17,F22,F27,F32)) -> 1474800

Sheet 第７号_収支予算内訳
A1: 収支予算内訳 | E1: =+SUM(F7,F12,F28,F33) -> 0 | F1: 単位：円
A2: 費目区分 | B2: 品目名 | C2: 単価 （税抜） | D2: 数量 | E2: 事業費 | F2: 補助対象経費 (税抜)
A3: ソフトウェア購入費 | E3: =+IF(B3="","",C3*D3) ->  | F3: =+IF(E3="","",E3) -> 
E4: =+IF(B4="","",C4*D4) ->  | F4: =+IF(E4="","",E4) -> 
E6: =+IF(B6="","",C6*D6) ->  | F6: =+IF(E6="","",E6) -> 
A7: 小計 | E7: =SUM(E3:E6) -> 0 | F7: =SUM(F3:F6) -> 0
A8: システム 構築費
A12: 小計 | E12: =SUM(E8:E11) -> 0 | F12: =SUM(F8:F11) -> 0
A13: 導入関連経費 （PC・タブレット・周辺機器等） ※１台あたり15万円 まで ※補助対象経費全体の１/２以内 | E13: =+IF(B13="","",C13*D13) ->  | F13: =+IF(B13="","",IF(C13<10000,"１万円未満",IF(MIN(150000*D13,C13*D13)<10000,0,IF(MIN(150000*D13,C13*D13)>$E$1,IF($E$1<10000,0,$E$1),MIN(150000*D13,C13*D13))))) ->  | G13: =+IF(E13=F13,"","補助対象経費が１万円未満、150,001円以上、 または補助対象経費の全体の１/２を超えました") -> 
F14: =+IF(B14="","",IF(C14<10000,"１万円未満",IF(MIN(150000*D14,C14*D14)<10000,0,IF(SUM($F$13:F13)+MIN(150000*D14,C14*D14)>$E$1,IF($E$1-SUM($F$13:F13)<10000,0,$E$1-SUM($F$13:F13)),MIN(150000*D14,C14*D14))))) ->  | G14: =+IF(E14=F14,"","補助対象経費が１万円未満、150,001円以上、 または補助対象経費の全体の１/２を超えました") -> 
F15: =+IF(B15="","",IF(C15<10000,"１万円未満",IF(MIN(150000*D15,C15*D15)<10000,0,IF(SUM($F$13:F14)+MIN(150000*D15,C15*D15)>$E$1,IF($E$1-SUM($F$13:F14)<10000,0,$E$1-SUM($F$13:F14)),MIN(150000*D15,C15*D15))))) -> 
F16: =+IF(B16="","",IF(C16<10000,"１万円未満",IF(MIN(150000*D16,C16*D16)<10000,0,IF(SUM($F$13:F15)+MIN(150000*D16,C16*D16)>$E$1,IF($E$1-SUM($F$13:F15)<10000,0,$E$1-SUM($F$13:F15)),MIN(150000*D16,C16*D16))))) -> 
A17: 小計 | E17: =SUM(E13:E16) -> 0 | F17: =SUM(F13:F16) -> 0
A18: 導入関連経費 （上記以外の経費） ※補助対象経費全体の１/２以内 | F18: =+IF(B18="","",IF(C18<10000,"１万円未満",IF(C18*D18<10000,0,IF($F$17+C18*D18>$E$1,IF($E$1-$F$17<10000,0,$E$1-$F$17),C18*D18)))) ->  | G18: =+IF(E18=F18,"","補助対象経費が１万円未満、 または補助対象経費の全体の１/２を超えました") -> 
F19: =+IF(B19="","",IF(C19<10000,"１万円未満",IF(C19*D19<10000,0,IF(SUM($F$17,$F$18:F18)+C19*D19>$E$1,IF($E$1-SUM($F$17,$F$18:F18)<10000,0,$E$1-SUM($F$17,$F$18:F18)),C19*D19)))) ->  | G19: =+IF(E19=F19,"","補助対象経費が１万円未満、 または補助対象経費の全体の１/２を超えました") -> 
F20: =+IF(B20="","",IF(C20<10000,"１万円未満",IF(C20*D20<10000,0,IF(SUM($F$17,$F$18:F19)+C20*D20>$E$1,IF($E$1-SUM($F$17,$F$18:F19)<10000,0,$E$1-SUM($F$17,$F$18:F19)),C20*D20)))) -> 
F21: =+IF(B21="","",IF(C21<10000,"１万円未満",IF(C21*D21<10000,0,IF(SUM($F$17,$F$18:F20)+C21*D21>$E$1,IF($E$1-SUM($F$17,$F$18:F20)<10000,0,$E$1-SUM($F$17,$F$18:F20)),C21*D21)))) -> 
A22: 小計 | E22: =SUM(E18:E21) -> 0 | F22: =SUM(F18:F21) -> 0
A23: クラウドサービス 利用料
E27: =IF(B27="","",C27*D27) -> 
A28: 小計 | E28: =SUM(E23:E27) -> 0 | F28: =SUM(F23:F27) -> 0
A29: 賃借料
A33: 小計 | E33: =SUM(E29:E32) -> 0 | F33: =SUM(F29:F32) -> 0
A34: 合計 | E34: =+SUM(E7,E12,E17,E22,E28,E33) -> 0 | F34: =+IF(COUNTIF(F3:F33,"*未満*")>0,"Erroerあり",SUM(F7,F12,F17,F22,F28,F33)) -> 0

Sheet 第７号様式_収支予算書(展開枠)
U1: 別紙２
A2: 収 支 予 算 書
A4: １．収支予算書 | U4: 単位：円
A5: 事 業 経 費 | B5: 費用区分 | L5: 総事業費 （税抜） | Q5: 補助対象経費 (税抜)
B8: ソフトウェア購入費 | L8: =第７号_収支予算内訳!E7 -> 0 | Q8: =第７号_収支予算内訳!F7 -> 0
B9: システム構築費 | L9: =第７号_収支予算内訳!E12 -> 0 | Q9: =第７号_収支予算内訳!F12 -> 0
B10: 導入関連経費 | L10: =SUM(第７号_収支予算内訳!E17,第７号_収支予算内訳!E22) -> 0 | Q10: =SUM(第７号_収支予算内訳!F17,第７号_収支予算内訳!F22) -> 0
B11: クラウドサービス利用料 | L11: =第７号_収支予算内訳!E28 -> 0 | Q11: =第７号_収支予算内訳!F28 -> 0
B12: 賃借料 | L12: =第７号_収支予算内訳!E33 -> 0 | Q12: =第７号_収支予算内訳!F33 -> 0
B13: 合 計 | Q13: （Ａ）
L14: =SUM(L8:P12) -> 0 | P14: 円 | Q14: =SUM(Q8:U12) -> 0 | U14: 円
B15: ※「導入関連経費の総額」及び「導入経費におけるＰＣ・タブレット・周辺機器」
C16: における要件は以下のとおり。
B17: 支援枠 | E17: 導入関連経費の総額 | J17: ハードウェアの 補助対象経費 | P17: ＰＣ・タブレット・周辺機器等の購入上限額
B19: デジタル 導入枠 | E19: 上限なし | J19: ・補助対象経費となるのは １個あたり税抜価格 １万円以上の商品のみ | P19: ・総額（税抜価格）上限 15万円まで
B20: デジタル 展開枠 | E20: ・補助対象経費全体の １／２以内 | J20: ・補助対象経費となるのは １個あたり税抜価格 １万円以上の商品のみ | P20: ・１台当たりの価格（税抜 価格）上限15万円まで
A22: ２ 補助申請額
B23: （Ａ） | E23: =Q14 -> 0 | K23: × ２／３ ＝ | O23: （Ｂ） | Q23: =INT(E23* 2/3) -> 0
A25: 補助申請額：(Ｂ)又は１００万円のうち低い額
O26: ※千円未満切捨 | P26: (補助申請額)
P27: =IF(INT(Q23/1000)>=1000,1000,INT(Q23/1000)) -> 0
